Workbook

Sheet Basic Profile
A1: INCOME TAX CALCULATOR 2021-22
A2: vk;dj x.kuk izi= 2021&22
A3: 1- bl 'khV dks mi;ksx djus ds fy, KRUTIDEV-10 o DEVLYS-10 dks dEI;wVj esa INSTALL djsaA | K3: DDO NAME | O3: HANUMAN SAHAY
A4: 2- GA-55 'khV dks t#j psd djsaa] vk;dj] thou chek] vkfn dh jkf'k esa ;fn fdlh ekg esa vUrj gksus ijA | K4: DDO FATHER NAME | O4: GULLA RAM
K5: DDO DESIGNATION | O5: PRINCIPAL
A6: OFFICE NAME | C6: GOVT. SR. SECONDARY SCHOOL, DILOD HATHI, ATRU BARAN | O6: TAN NUMBER | Q6: XXXX9987D
A7: S.N. | B7: EMPLOYEE BASIC DETAIL'S | H7: PAYMENT DETAIL'S
B8: Employee Name | C8: Designation | D8: Pan Number | E8: GPF/NPS | F8: Bank Ac/No. | G8: Mobile Number | H8: MARCH BASIC | I8: HRA | J8: SURRENDER 2020-21 | L8: BONUS | M8: jkT; chek S.I. | N8: thou chek L.I.C. | O8: nq?kZVuk chek GIS | P8: fgrdkjh fu/kh | Q8: ITAX | R8: RGHS | T8: GPF | U8: Yes | V8: 8%
J9: YES/NO | K9: MONTH | T9: NPS | U9: No | V9: 16%
A10: 1 | B10: PARMANAND MEGHWAL | C10: SR. TEACHER | D10: ASQPM6311H | E10: NPS | F10: 2225617763 | G10: 9784379510 | H10: 45100 | I10: 8% | J10: Yes | K10: 5 | L10: Yes | M10: 3000 | N10: 0 | O10: 220 | P10: 250 | Q10: 0 | R10: 0
A11: 2 | B11: HANUMAN SAHAY | C11: PRICIPAL | D11: AASDF6677K | E11: NPS | F11: 123456789 | G11: 9786534334 | H11: 67200 | I11: 8% | J11: No | K11: 5 | L11: No | M11: 5000 | N11: 5641 | O11: 700 | P11: 500 | Q11: 3000 | R11: 440 | T11: Yes | U11: 1
A12: 3 | T12: No | U12: 2
A13: 4 | U13: 3
A14: 5 | U14: 4
A15: 6 | U15: 5
A16: 7 | U16: 6
A17: 8 | U17: 7
A18: 9 | U18: 8
A19: 10 | U19: 9
A20: 11 | U20: 10
A21: 12 | U21: 11
A22: 13 | U22: 12
A23: 14
A24: 15
A25: 16
A26: 17
A27: 18
A28: 19
A29: 20
A30: 21
A31: 22
A32: 23
A33: 24
A34: 25
A35: 26
A36: 27
A37: 28
A38: 29
A39: 30
A40: 31
A41: 32
A42: 33
A43: 34
A44: 35
A45: 36
A46: 37
A47: 38
A48: 39
A49: 40
A50: 41
A51: 42
A52: 43
A53: 44
A54: 45
A55: 46
A56: 47
A57: 48
A58: 49
A59: 50
A60: 51
A61: 52
A62: 53
A63: 54
A64: 55
A65: 56
A66: 57
A67: 58
A68: 59
A69: 60
A70: 61
A71: 62
A72: 63
A73: 64
A74: 65
A75: 66
A76: 67
A77: 68
A78: 69
A79: 70
A80: 71
A81: 72
A82: 73
A83: 74
A84: 75
A85: 76
A86: 77
A87: 78
A88: 79
A89: 80
A90: 81
A91: 82
A92: 83
A93: 84
A94: 85
A95: 86
A96: 87
A97: 88
A98: 89
A99: 90
A100: 91
A101: 92
A102: 93
A103: 94
A104: 95
A105: 96
A106: 97
A107: 98
A108: 99
A109: 100

Sheet GA-55
C1: USE KRUTIDEV & DEVLYS 10 FONT
D2: ;fn vki 01-01-2004 dks ;k mlds i'pkr fu;qDr dkfeZd gSa rks Drop Down Menu esa ls "Yes" pqusa] vU;Fkk "No" pqusaA | Z2: =VLOOKUP(C7,'Basic Profile'!A10:R109,5,0) -> NPS | AC2: HRA
D3: D;k vkius lefiZr osru fy;k gS \ | L3: =VLOOKUP(C7,'Basic Profile'!A10:R109,10,0) -> Yes | N3: ;fn gk¡ rks ftl ekg esa fcy cuk mldk Øekad pqusaA | X3: =VLOOKUP(C7,'Basic Profile'!A10:R109,11,0) -> 5
D4: D;k vki ofj"B ukxfjd Js.kh ¼60-80 vk;qoxZ½ esa vkrs gS \ | P4: No | R4: D;k vkius cksul feyk gS \ | Z4: =VLOOKUP(C7,'Basic Profile'!A10:R109,12,0) -> Yes | AC4: =VLOOKUP(C7,'Basic Profile'!A10:R109,9,0) -> 8%
C6: S.N. | D6: ='Basic Profile'!C6 -> GOVT. SR. SECONDARY SCHOOL, DILOD HATHI, ATRU BARAN
C7: 1 | D7: INCOME TAX CALCULATION (GA-55) 2021-22
C8: NAME : | D8: =VLOOKUP(C7,'Basic Profile'!A10:R109,2,0) -> PARMANAND MEGHWAL | I8: DESIGNATION | L8: =VLOOKUP(C7,'Basic Profile'!A10:R109,3,0) -> SR. TEACHER | P8: PAN N0. | R8: =VLOOKUP(C7,'Basic Profile'!A10:R109,4,0) -> ASQPM6311H | U8: TAN NO. | W8: ='Basic Profile'!Q6 -> XXXX9987D | Z8: A/C NO. | AB8: =VLOOKUP(C7,'Basic Profile'!A10:R109,6,0) -> 2225617763
I9: RAJTEACHERS.NET | Z9: MOB NO. | AB9: =VLOOKUP(C7,'Basic Profile'!A10:R109,7,0) -> 9784379510
C10: Month | D10: Basic Pay | E10: Dearness Pay | F10: Leave Pay | G10: Spl. Pay | H10: D.A. | I10: H.R.A. | J10: Washing Allow. | K10: ROP (If any, put the value in minus) | L10: Other Allowance 1 | M10: Other Allowance 2 | N10: Gross Salary | O10: =IF(Z2="GPF","GPF","Emp. C.Pen.F.") -> Emp. C.Pen.F. | P10: =IF(Z2="No","GPF LOAN","") ->  | Q10: SI | R10: SI LOAN + INT | S10: RPMF/RGHS | T10: LIC | U10: Group Insurance Accidental | V10: HBA Premium | W10: HBA Interest | X10: Income Tax / TDS | Y10: GPF 2004 | Z10: HITKARI NIDHI | AA10: Total Deduction | AB10: Net Payment | AC10: Bill No. & T.V. No.
B11: 3 | C11: 2021-03-01 | D11: =VLOOKUP(C7,'Basic Profile'!A10:R109,8,0) -> 45100 | E11: 0 | F11: 0 | G11: 0 | H11: =ROUND(17%*D11,0) -> 7667 | I11: =IF($AC$4=16%,ROUND(0.16*D11,0),ROUND(0.08*D11,0)) -> 3608 | J11: 0 | K11: 0 | L11: 0 | M11: 0 | N11: =SUM(D11:M11) -> 56375 | O11: =IF($Z$2="NPS",ROUND((D11+H11)*0.1,0),IF($Z$2="GPF",IF(D11<23101,1450,IF(D11<28501,1625,IF(D11<38501,2100,IF(D11<51501,2850,IF(D11<62001,3575,IF(D11<72001,4200,IF(D11<80001,4800,IF(D11<116001,6150,IF(D11<167001,8900,10500))))))))),0)) -> 5277 | P11: 0 | Q11: =VLOOKUP(C7,'Basic Profile'!A10:R109,13,0) -> 3000 | R11: 0 | S11: =IF($Z$2="gpf",IF(D11<18001,265,IF(D11<33501,440,IF(D11<54001,658,875))),0) -> 0 | T11: =VLOOKUP(C7,'Basic Profile'!A10:R109,14,0) -> 0 | U11: 0 | X11: =VLOOKUP(C7,'Basic Profile'!A10:R109,17,0) -> 0 | AA11: =SUM(O11:Z11) -> 8277.00 | AB11: =N11-AA11 -> 48098.00
B12: 4 | C12: 2021-04-01 | D12: =D11 -> 45100 | E12: =IF(E$11=0,0,ROUND(D12/2,0)) -> 0 | F12: =IF(F$11=0,0,F11) -> 0 | G12: 0 | H12: =ROUND(17%*D12,0) -> 7667 | I12: =IF($AC$4=16%,ROUND(0.16*D12,0),ROUND(0.08*D12,0)) -> 3608 | J12: =IF(J$11=0,0,J11) -> 0 | K12: =IF(K$11=0,0,K11) -> 0 | L12: 0 | M12: =IF(M$11=0,0,M11) -> 0 | N12: =SUM(D12:M12) -> 56375 | O12: =IF($Z$2="NPS",ROUND((D12+H12)*0.1,0),IF($Z$2="GPF",IF(D12<23101,1450,IF(D12<28501,1625,IF(D12<38501,2100,IF(D12<51501,2850,IF(D12<62001,3575,IF(D12<72001,4200,IF(D12<80001,4800,IF(D12<116001,6150,IF(D12<167001,8900,10500))))))))),0)) -> 5277 | P12: =P11 -> 0 | Q12: =Q11 -> 3000 | R12: =R11 -> 0 | S12: =IF($Z$2="gpf",IF(D12<18001,265,IF(D12<33501,440,IF(D12<54001,658,875))),0) -> 0 | T12: =T11 -> 0 | U12: =VLOOKUP(C7,'Basic Profile'!A10:R109,15,0) -> 220.00 | V12: =V11 -> 0 | W12: 0 | X12: =X11 -> 0 | Y12: 0 | AA12: 8497.00 | AB12: 47878.00
B13: 5 | C13: 2021-05-01 | D13: 45100 | E13: =IF($E$11=0,0,ROUND(D13/2,0)) -> 0 | F13: 0 | G13: 0 | H13: 7667 | I13: 3608 | K13: =IF(K$11=0,0,K12) -> 0 | L13: =IF(L$11=0,0,L12) -> 0 | M13: 0 | N13: 56375 | O13: 5277 | P13: =P12 -> 0 | Q13: =Q12 -> 3000 | R13: =R12 -> 0 | S13: 0 | T13: =T12 -> 0 | U13: 0 | V13: 0 | W13: 0 | X13: 0 | Y13: =Y12 -> 0 | AA13: 8277.00 | AB13: 48098.00
B14: 6 | C14: 2021-06-01 | D14: 45100 | E14: 0 | F14: 0 | G14: 0 | H14: 7667 | I14: 3608 | J14: 0 | K14: 0 | L14: 0 | M14: 0 | N14: 56375 | O14: 5277 | P14: 0 | Q14: 3000 | R14: 0 | S14: 0 | T14: 0 | U14: 0 | V14: 0 | W14: 0 | X14: 0 | Y14: =Y13 -> 0 | AA14: 8277.00 | AB14: 48098.00
B15: 7 | C15: 2021-07-01 | D15: =MROUND(ROUND(1.03*D14,0),100) -> 46500 | E15: 0 | F15: =IF(F$11=0,0,F14) -> 0 | G15: =IF(G$11=0,0,G14) -> 0 | H15: =ROUND(28%*D15,0) -> 13020 | I15: 3720 | J15: =IF(J$11=0,0,J14) -> 0 | K15: =IF(K$11=0,0,K14) -> 0 | L15: =IF(L$11=0,0,L14) -> 0 | M15: =IF(M$11=0,0,M14) -> 0 | N15: 63240 | O15: 5952 | P15: =P14 -> 0 | Q15: =Q14 -> 3000 | R15: =R14 -> 0 | S15: =IF($Z$2="gpf",IF(D15<18001,265,IF(D15<33501,440,IF(D15<54001,658,875))),VLOOKUP(C7,'Basic Profile'!A10:R109,18,0)) -> 0 | T15: =T14 -> 0 | U15: 0 | V15: =V14 -> 0 | W15: =W14 -> 0 | X15: =X14 -> 0 | Y15: 0 | AA15: 8952.00 | AB15: 54288.00
B16: 8 | C16: 2021-08-01 | D16: =D15 -> 46500 | E16: 0 | F16: 0 | G16: 0 | H16: =ROUND(28%*D16,0) -> 13020 | I16: =IF($AC$4=16%,ROUND(0.18*D16,0),ROUND(0.09*D16,0)) -> 4185 | J16: 0 | K16: 0 | L16: 0 | M16: 0 | N16: 63705 | O16: 5952 | P16: 0 | Q16: 3000 | R16: 0 | S16: =IF($Z$2="gpf",IF(D15<18001,265,IF(D15<33501,440,IF(D15<54001,658,875))),VLOOKUP(C7,'Basic Profile'!A10:R109,18,0)) -> 0 | T16: 0 | U16: 0 | V16: 0 | W16: 0 | X16: 0 | Y16: 0 | AA16: 8952.00 | AB16: 54753.00
B17: 9 | C17: 2021-09-01 | D17: 46500 | E17: 0 | F17: 0 | G17: 0 | H17: 13020 | I17: 4185 | J17: 0 | K17: 0 | L17: 0 | M17: 0 | N17: 63705 | O17: 5952 | P17: 0 | Q17: 3000 | R17: 0 | S17: =IF($Z$2="gpf",IF(D15<18001,265,IF(D15<33501,440,IF(D15<54001,658,875))),VLOOKUP(C7,'Basic Profile'!A10:R109,18,0)) -> 0 | T17: 0 | U17: 0 | V17: 0 | W17: 0 | X17: 0 | Y17: 0 | AA17: 8952.00 | AB17: 54753.00
B18: 10 | C18: 2021-10-01 | D18: 46500 | E18: 0 | F18: =IF(F$11=0,0,F17) -> 0 | G18: =IF(G$11=0,0,G17) -> 0 | H18: =ROUND(31%*D18,0) -> 14415 | I18: 4185 | J18: 0 | K18: 0 | L18: 0 | M18: 0 | N18: 65100 | O18: 6092 | P18: 0 | Q18: 3000 | R18: 0 | S18: =IF($Z$2="gpf",IF(D15<18001,265,IF(D15<33501,440,IF(D15<54001,658,875))),VLOOKUP(C7,'Basic Profile'!A10:R109,18,0)) -> 0 | T18: 0 | U18: 0 | V18: 0 | W18: 0 | X18: 0 | Y18: 0 | AA18: 9092.00 | AB18: 56008.00
B19: 11 | C19: 2021-11-01 | D19: 46500 | E19: 0 | F19: =IF(F$11=0,0,F18) -> 0 | G19: 0 | H19: =ROUND(31%*D19,0) -> 14415 | I19: 4185 | J19: 0 | K19: 0 | L19: 0 | M19: 0 | N19: 65100 | O19: 6092 | P19: 0 | Q19: 3000 | R19: 0 | S19: =IF($Z$2="gpf",IF(D15<18001,265,IF(D15<33501,440,IF(D15<54001,658,875))),VLOOKUP(C7,'Basic Profile'!A10:R109,18,0)) -> 0 | T19: 0 | U19: 0 | V19: 0 | W19: 0 | X19: 0 | Y19: 0 | AA19: 9092.00 | AB19: 56008.00
B20: 12 | C20: 2021-12-01 | D20: 46500 | E20: 0 | F20: =IF(F$11=0,0,F19) -> 0 | G20: 0 | H20: 14415 | I20: 4185 | J20: 0 | K20: 0 | L20: 0 | M20: 0 | N20: 65100 | O20: 6092 | P20: 0 | Q20: 3000 | R20: 0 | S20: =IF($Z$2="gpf",IF(D15<18001,265,IF(D15<33501,440,IF(D15<54001,658,875))),VLOOKUP(C7,'Basic Profile'!A10:R109,18,0)) -> 0 | T20: 0 | U20: 0 | V20: 0 | W20: 0 | X20: 0 | Y20: 0 | Z20: =VLOOKUP(C7,'Basic Profile'!A10:R109,16,0) -> 250 | AA20: 9342.00 | AB20: 55758.00
B21: 1 | C21: 2022-01-01 | D21: 46500 | E21: 0 | F21: =IF(F$11=0,0,F20) -> 0 | G21: 0 | H21: 14415 | I21: 4185 | J21: 0 | K21: 0 | L21: 0 | M21: 0 | N21: 65100 | O21: 6092 | P21: 0 | Q21: 3000 | R21: 0 | S21: =IF($Z$2="gpf",IF(D15<18001,265,IF(D15<33501,440,IF(D15<54001,658,875))),VLOOKUP(C7,'Basic Profile'!A10:R109,18,0)) -> 0 | T21: 0 | U21: 0 | V21: 0 | W21: 0 | X21: 0 | Y21: 0 | AA21: 9092.00 | AB21: 56008.00
B22: 2 | C22: 2022-02-01 | D22: 46500 | E22: 0 | F22: =IF(F$11=0,0,F21) -> 0 | G22: 0 | H22: 14415 | I22: 4185 | J22: 0 | K22: 0 | L22: 0 | M22: 0 | N22: 65100 | O22: 6092 | P22: 0 | Q22: 3000 | R22: 0 | S22: =IF($Z$2="gpf",IF(D15<18001,265,IF(D15<33501,440,IF(D15<54001,658,875))),VLOOKUP(C7,'Basic Profile'!A10:R109,18,0)) -> 0 | T22: 0 | U22: 0 | V22: 0 | W22: 0 | X22: 0 | Y22: 0 | AA22: 9092.00 | AB22: 56008.00
C23: DA Arrear | H23: =(ROUND(31%*D15,0)-ROUND(28%*D15,0))*3 -> 4185 | N23: =H23 -> 4185 | O23: =IF($Z$2="NPS",ROUND((ROUND(31%*D15,0)-ROUND(28%*D15,0))*10%,0)*3,IF($Z$2="GPF",H23,0)) -> 420 | T23: 0 | Y23: =IF($Z$2="NPS",N23-O23,IF($Z$2="GPF",0)) -> 3765 | AA23: 4185.00 | AB23: 0.00
C24: HRA Arrear | I24: =IF($AC$4=16%,ROUND(0.02*D15,0),ROUND(0.01*D15,0)) -> 465 | N24: 465 | AA24: 0.00 | AB24: 465.00
C25: Surrender | D25: =IF(L3="NO",0,IF(X3=3,D22,VLOOKUP(X3,B11:D22,3,FALSE)))/2 -> 22550 | H25: =IF(AND(X3>3,X3<7),ROUND(17%*D25,0),ROUND(28%*D25,0)) -> 3834 | N25: 26384 | AA25: 0.00 | AB25: 26384.00
C26: Bonus | D26: =IF(Z4="Yes",6774,0) -> 6774 | N26: 6774 | O26: =IF($Z$2="Yes",0,IF($Z$2="No",D26/2,0)) -> 0 | Y26: =IF($Z$2="GPF",0,IF($Z$2="NPS",D26/2,0)) -> 3387 | AA26: 3387.00 | AB26: 3387.00
C27: Fixation Arrear | N27: 0 | AA27: 0.00 | AB27: 0.00
C28: Salary Arrear 1 | N28: 0 | AA28: 0.00 | AB28: 0.00
C29: Salary Arrear 2 | N29: 0 | AA29: 0.00 | AB29: 0.00
C30: Salary Arrear 3 | N30: 0 | AA30: 0.00 | AB30: 0.00
C31: Other | E31: 0 | F31: 0 | N31: 0 | AA31: 0.00 | AB31: 0.00
C32: TOTAL | D32: =SUM(D11:D31) -> 581724 | E32: 0 | F32: 0 | G32: 0 | H32: 149822 | I32: 47912 | J32: 0 | K32: 0 | L32: 0 | M32: 0 | N32: 779458 | O32: 69844 | P32: 0 | Q32: 36000 | R32: 0 | S32: 0 | T32: 0 | U32: 220.00 | V32: 0 | W32: 0 | X32: 0 | Y32: 7152 | Z32: 250 | AA32: 113466.00 | AB32: 665992.00
E37: Signature of Employee | AB37: Signature of DDO

Sheet Other Deduction
A1: osru ds vfrfjDr dVkSfr;k¡] vk;@tek jkf'k ,oa NwV dk fooj.k
A2: ='GA-55'!D8& " , " &'GA-55'!K8&" PAN- "&'GA-55'!P8 -> PARMANAND MEGHWAL , PAN- PAN N0.
A3: 1- edku fdjk;k HkRrk ¼ NwV tks ysuh gS½ | B3: 0.00 | D3: 17- cpr [kkrs dh tek jkf'k ij izkIr C;kt (80 TTA/80 TTB) gsrq | E3: 0.00 | F3: BASIC+D.A. | DR3: UPS Kuhada Khurd
A4: 2- euksjatu Hkrk /kkjk 16 ¼ii½ ds vUrxZr | B4: 0.00 | D4: 18- vU; vk; ¼,Q Mh ij C;kt] vU; C;kt ;k vU; L=ks+= ls vk; vkfn dk ;ksx½ | E4: 0.00 | F4: ='GA-55'!N32-'GA-55'!I32 -> 731546
A5: 3- O;o;k; dj /kkjk 16 ¼iii½ ds vUrxrZ | B5: 0.00 | D5: 19- vU; tek jkf'k ¼/kkjk 80 lh ds vUrxZr½ | E5: 0.00 | F5: Taxable Amt
A6: 4- x`g lEifr ls izkIr fdjk;k & vk; | B6: 0.00 | D6: 20- /kkjk 80CCC - isa'ku Iyku gsrq va'knku ¼,u-ih-,l- ds avykok½ | E6: 0.00 | F6: ='Tax Old Regime'!Q47 -> 616240
A7: 5- x`gdj | B7: 0.00 | D7: 21- /kkjk 80CCD(1B) -uohu isa'ku ;kstuk esa vfrfjDr va'knku ¼vf/kdre :- 50]000½ | E7: 0.00 | F7: Tax Deposited
A8: 6- x`g _.k fdLr ewy ¼tks osru ls ugha dkVk x;k½ | B8: 0.00 | D8: 22- /kkjk 80D - fpfdRlk chek izhfe;e ¼lkekU; 25000] ofj"B ukxfjd 50000½ | E8: 0.00 | F8: ='GA-55'!X32 -> 0.00
A9: 7- x`g _.k fdLr C;kt ¼tks osru ls ugha dkVk x;k½ | B9: 0.00 | D9: 23- /kkjk 80DD - fodykax vkfJrksa ds fpfdRlk mipkj¼vf/kdre 75000] 80% fodykaxrk 125000½ | E9: 0.00 | F9: Rebate Under Section 80C, 80CCC, 80CCD(1)
A10: 8- thou chek izhfe;e ¼tks osru ls ugh dkVk x;k½ LIC | B10: 0.00 | D10: 24- /kkjk 80DDB - fof'k"V jksxksa ds mipkj gsrq dVkSrh ¼lkekU; 40000] ofj"B ukxfjd 1 yk[k½ | E10: 0.00 | DR10: UPS Banediya Charnan
A11: 9- ih-,y-vkbZ- (PLI) | B11: 0.00 | D11: 25- /kkjk 80E - mPp f'k{kk gsrq fy, _.k dk C;kt ¼/kkjk 80E½ | E11: 0.00 | DR11: UPS Laxmipura Dhakaran
A12: 10- V;w'ku Qhl (Tution Fees) | B12: 0.00 | D12: 26- /kkjk 80G - /kekZFkZ laLFkkvksa vkfn dks fn;s nku ¼d Js.kh 100% ,oa [k Js.kh 50%½ | E12: 0.00 | F12: ='Tax Old Regime'!Q31 -> 113216 | DR12: UPS Pathraj Kala
A13: 11- ;w- ,y- vkbZ- ih-@okf"kZd Iyku | B13: 0.00 | D13: 27- /kkjk 80U - LFkkbZ 'kkjhfjd fodykaxrk ¼vf/kdre 75000] 80% fodykaxrk 125000½ | E13: 0.00
A14: 12- jk"Vªh; cpr i= (NSC) | B14: 0.00 | D14: 28- /kkjk 80 GGA - vuqeksfnr oSKkfud]lkekftd]xzkeh.k fodkl vkfn gsrq fn;k x;k nku | E14: 0.00 | F14: edku fdjk;k NwV ds fy, jlhn dh vko';drk | DR14: PS Aarampura
A15: 13- jk"Vªh; cpr i= ij vnr C;kt | B15: 0.00 | D15: 29- bfDoVh fyad lsfoax Ldhe | E15: 0.00 | DR15: UPS Laxmipura Dhakaran
A16: 14- yksd Hkfo"; fuf/k (PPF) | B16: 0.00 | D16: 30- LFkfxr okf"kZdh | E16: 0.00 | DR16: UPS Raghunathpura
A17: 15- jk"Vªh; cpr Ldhe | B17: 0.00 | D17: 31- jkgr /kkjk 89 ds rgr | E17: 0.00 | F17: =IF(B3>=1,(F4*10%+B3),0) -> 0.00 | DR17: UPS Manda
A18: 16- lqdU;k le`f) ;kstuk (SSY) | B18: 0.00 | D18: 32- osru fcy ds vykok tek djk;k x;k aavk;dj (TDS) | E18: 0.00 | DR18: UPS Sandla
A19: ='Tax Old Regime'!B63 -> Income Tax Payable | D19: ='Tax Old Regime'!Q63 -> 37178.00 | E19: HRA | F19: ='GA-55'!I32 -> 47912.00 | DR19: UPS Ramsinghpura
A20: ="Total Rebate of (US 80C, 80CCC,80CCD(1)) = "&'Tax Old Regime'!Q31 -> Total Rebate of (US 80C, 80CCC,80CCD(1)) = 113216 | D20: ="Investable Amount = "&(150000-'Tax Old Regime'!Q31) -> Investable Amount = 36784 | DR20: GSS Ganeshganj
A21: WWW.RAJTEACHERS.NET

Sheet Tax Old Regime
B1: ='GA-55'!D6 -> GOVT. SR. SECONDARY SCHOOL, DILOD HATHI, ATRU BARAN
B2: vk;dj x.kuk izi= o"kZ 2021&2022 ¼dj fu/kkZj.k o"kZ 2022&2023½
B3: 1 | C3: uke deZpkjh % | E3: ='GA-55'!D8 -> PARMANAND MEGHWAL | K3: in % | L3: ='GA-55'!L8 -> SR. TEACHER | O3: PAN : | P3: ='GA-55'!R8 -> ASQPM6311H
B4: 2 | C4: vk; % o"kZ&2021&22 esa izkIr dqy osru ¼ dj ;ksX; lqfo/kkvksa ds eqY; lfgr ½ | P4: #- | Q4: =IF('GA-55'!Z2="GPF",'GA-55'!N32,('GA-55'!N32+'GA-55'!O32)) -> 849302.00
B5: 3 | C5: x`g fdjk;k] /kkjk 10¼13&A½ ds vUrxrZ ,oa /kkjk 10¼14½ds vUrxrZ vU; Hkrs tks dj eqDÙk gSA | P5: #- | Q5: ='Other Deduction'!B3 -> 0.00
B6: 4 | C6: 'ks"k ¼2&3½ | P6: #- | Q6: =Q4-Q5 -> 849302.00
B7: 5 | C7: ¼i½ euksjatu Hkrk /kkjk 16 ¼ii½ ds vUrxrZ ¼ vf/kdre lhek : 5000 ½ | M7: ='Other Deduction'!B4 -> 0.00
C8: ¼ii½ O;o;k; dj /kkjk 16 ¼iii½ ds vUrxrZ | M8: ='Other Deduction'!B5 -> 0.00
C9: ¼iiI½ LVs.MMZ fMMsD'ku (Standard Deduction) 50]000 ¼vf/kdre½ | M9: =IF(Q6<50000,Q6,50000) -> 50000.00 | P9: #- | Q9: =SUM(M7:O9) -> 50000.00
B10: 6 | C10: 'ks"k ¼4&5½ | P10: #- | Q10: =Q6-Q9 -> 799302.00
B11: 7 | C11: ¼v½x`g lEifr ls vk;%¼1½ Loa; ds mi;ksx esa &'kwU; | K11: ¼2½ izkIr fdjk;k #- | M11: ='Other Deduction'!B6 -> 0.00
C12: ¼c½ ?kVk;sa | E12: fdjk;s dk 30% | H12: x`g _.k ij C;kt | K12: x`gdj | M12: ;ksx 7¼c½
E13: =ROUND(M11*0.3,0) -> 0.00 | H13: =IF(('GA-55'!W32+'Other Deduction'!B9)>200000,200000,('GA-55'!W32+'Other Deduction'!B9)) -> 0.00 | K13: ='Other Deduction'!B7 -> 0.00 | M13: =E13+H13+K13 -> 0.00
C14: 'ks"k &@$¼7¼v½ ,oa ;ksx 7¼c½ dk½ | P14: #- | Q14: =M11-M13 -> 0.00
B15: 8 | C15: dqy 'ks"k &@$¼6,oa 7½ | P15: #- | Q15: =Q10+Q14 -> 799302.00
B16: 9 | C16: vU; vk; | P16: #- | Q16: ='Other Deduction'!E3+'Other Deduction'!E4 -> 0.00
B17: 10 | C17: ldy vk; ;ksx ¼8$9½ | P17: #- | Q17: =Q15+Q16 -> 799302.00
B18: 11 | C18: ?kVkb;s dVkSSfr;k¡ %& /kkjk US 80C, 80CCC,80CCD (1)
C19: (A) vf/kdre lhek 1]50]000@& ¼/kkjk 80CCE ½ ] ¼/kkjk 80CCD (2), ds vykok
C20: (i) | D20: jkT; chek ¼SI) | H20: #- | I20: ='GA-55'!Q32 -> 36000.00 | J20: (xi) | K20: ljdkjh isa'ku ;kstuk esa va'knku ECPF vf/kdre osru dk 10%¼/kkjk 80ccd½ | N20: #- | O20: =IF('GA-55'!Z2="NPS",'GA-55'!O32-Q33,0) -> 69844.00
C21: (ii) | D21: thou chek izhfe;e ¼LIC) | H21: #- | I21: ='GA-55'!T32+'Other Deduction'!B10 -> 0.00 | J21: (xii) | K21: isa'ku Iyku gsrq va'knku¼/kkjk 80ccc½ | N21: #- | O21: ='Other Deduction'!E6 -> 0.00
C22: (iii) | D22: jk"Vªh; cpr i= ¼NSC) | H22: #- | I22: ='Other Deduction'!B14 -> 0.00 | J22: (xiii) | K22: jk"Vªh; cpr i= ij vnr C;kt | N22: #- | O22: ='Other Deduction'!B15 -> 0.00
C23: (iv) | D23: yksd Hkfo"; fuf/k ¼PPF) | H23: #- | I23: ='Other Deduction'!B16 -> 0.00 | J23: (xiv) | K23: V;w'ku Qhl | N23: #- | O23: ='Other Deduction'!B12 -> 0.00
C24: (v) | D24: jk"Vªh; cpr Ldhe ¼NSS) | H24: #- | I24: ='Other Deduction'!B17 -> 0.00 | J24: (xv) | K24: bfDoVh fyad lsfoax Ldhe | N24: #- | O24: ='Other Deduction'!E15 -> 0.00
C25: (vi) | D25: lkekU; izko/kk;h fuf/k ¼GPF) | H25: #- | I25: =IF('GA-55'!Z2="No",'GA-55'!O32,0) -> 0.00 | J25: (xvi) | K25: LFkfxr okf"kZdh ¼Defferred Annuty) | N25: #- | O25: ='Other Deduction'!E16 -> 0.00
C26: (vii) | D26: lkewfgd chek izhfe;e ¼G.Ins.) | H26: #- | I26: ='GA-55'!U12 -> 220.00 | J26: (xvii) | K26: ih-,y-vkbZ- ¼PLI) | N26: #- | O26: ='Other Deduction'!B11 -> 0.00
C27: (viii) | D27: ;w- ,y- vkbZ- ih-@okf"kZd Iyku | H27: #- | I27: ='Other Deduction'!B13 -> 0.00 | J27: (xviii) | K27: vU; tekjkf'k ¼/kkjk 80 lh ds vUrxZr½ | N27: #- | O27: ='Other Deduction'!E5 -> 0.00
C28: (ix) | D28: x`g _.k fdLr ¼HBA Premium) | H28: #- | I28: ='GA-55'!V32+'Other Deduction'!B8 -> 0.00 | J28: (xix) | K28: lqdU;k le`f) ;kstuk esa tek jkf'k | N28: #- | O28: ='Other Deduction'!B18 -> 0.00
C29: (x) | D29: lkekU; izko/kk;h fuf/k ¼GPF) | H29: #- | I29: =IF('GA-55'!Z2="NPS",'GA-55'!Y32,0) -> 7152.00 | J29: (xx) | K29: vU;
C30: ;ksx ( i ls xviii ) | N30: #- | O30: =SUM(I20:I29)+SUM(O20:O29) -> 113216.00
C31: vf/kdre dVkSrh dh jkf'k 1-50 yk[k #i, rd | P31: #- | Q31: =IF(O30<150001,ROUND(O30,0),150000) -> 113216.00
C32: (B) ?kVkb;s& /kkjk 80CCD(2) fu;ksDrk }kjk isa'ku va'knku dh jkf'k ¼vf/kdre osru dk 10%) i`Fkd ls NwV | Q32: =IF('GA-55'!Z2="NPS",'GA-55'!O32,0) -> 69844.00
C33: (C) ?kVkb;s & /kkjk 80CCD (1B) uohu isa'ku ;kstuk esa vfrfjDr va'knku ¼vf/kdre :- 50]000) | P33: #- | Q33: ='Other Deduction'!E7 -> 0.00
C34: ;ksx 11(A+B+C) | P34: #- | Q34: =SUM(Q31:Q33) -> 183060.00
B35: 12 | C35: vU; dVkSfr;k¡
C36: 1-/kkjk 80 D ,fpfdRlk chek izhfe;e ¼Lo;a]ifr@iRuh o cPpksa ds fy, : 25000] ekrk&firk ds fy, : 25000]lhfu;j flVhtu : 50000½ | P36: #- | Q36: ='Other Deduction'!E8 -> 0.00
C37: 2- /kkjk 80DD fodykax vkfJrksa ds fpfdRlk mipkj ¼vf/kdre 75]000 rFkk 80% ;k vf/kd fodykaxrk 125]000½ | P37: #- | Q37: ='Other Deduction'!E9 -> 0.00
C38: 3- /kkjk 80DDB fof'k"V jksaxksa ds mipkj gsrq dVkSrh ¼vf/kdre : 40]000] lhfu;j flVhtu gsrq : 100]000½ | P38: #- | Q38: ='Other Deduction'!E10 -> 0.00
C39: 4- /kkjk 80E mPp f'k{kk gsrq fy, _.k dk C;kt | P39: #- | Q39: ='Other Deduction'!E11 -> 0.00
C40: 5- /kkjk 80G /kekZFkZ laLFkkvksa vkfn dks fn;s nku ¼ d Js.kh esa 100 izfr'kr ,oa [k Js.kh esa 50 izfr'kr½ | P40: #- | Q40: ='Other Deduction'!E12 -> 0.00
C41: 6- /kkjk 80U LFkkbZ :i ls 'kkjhfjd vleFkZrrk dh n'kk esa ¼vf/kdre 75]000 rFkk vf/kfu;e 1995ds vuqlkj 125]000½ | P41: #- | Q41: ='Other Deduction'!E13 -> 0.00
C42: 7- /kkjk 80 TTA cpr [kkrs ij vf/kdre C;kt :- 10]000 194(IA) (80 TTB - aofj"B ukxfjd vf/kdre C;kt 50000:-½ | P42: #- | Q42: =IF('GA-55'!P4="Yes",IF('Other Deduction'!E3<50001,'Other Deduction'!E3,50000),IF('Other Deduction'!E3<10001,'Other Deduction'!E3,10000)) -> 0.00
C43: 8- /kkjk 80 GGA vuqeksfnr oSKkfud] lkekftd] xzkeh.k fodkl vkfn gsrq fn;k x;k nku | P43: #- | Q43: ='Other Deduction'!E14 -> 0.00
C44: dqy ;ksx 12 ¼ 1 ls 6 rd ½ | P44: #- | Q44: =SUM(Q36:Q43) -> 0.00
B45: 13 | C45: dqy dVkSrh ( 11 + 12) | P45: #- | Q45: =Q34+Q44 -> 183060.00
B46: 14 | C46: dj ;ksX; vk; ( 10 - 13 ) | P46: #- | Q46: =(Q17-Q45) -> 616242.00
B47: 15 | C47: dqy vk; dh jkf'k dks lEiw.kZ djuk ¼ nl ds xq.kd esa ½ /kkjk 288A | P47: #- | Q47: =ROUND(Q46,-1) -> 616240.00
B48: 16 | C48: vk;dj dh x.kuk mijksDr dkWye 15 ds vk/kkj ij
C49: ,d O;fDr dj nkrk | H49: ofj"B ukxfjd ¼60 ls 80 o"kZ rd½ | L49: 80 o"kZ ;k vf/kd vk;q
C50: 2,50,000 rd | F50: Nil | H50: 3,00,000 rd | K50: Nil | P50: #- | Q50: 0.00
C51: 2,50,001-5,00,000 | F51: 5% | H51: 3,00,001-5,00,000 | K51: 5% | L51: 5,00,000 rd | O51: Nil | P51: #- | Q51: =ROUND(IF('GA-55'!P4="No",IF(Q47<250001,0,IF(Q47>500000,12500,((Q47-250000)*0.05))),IF(Q47<300001,0,IF(Q47>500000,10000,((Q47-300000)*0.05)))),0) -> 12500.00
C52: 5,00,001-10,00,000 | F52: 20% | H52: 5,00,001-10,00,000 | K52: 20% | L52: 5,00,001-10,00,000 | O52: 20% | P52: #- | Q52: =IF(Q47<500001,0,IF(Q47>1000000,100000,((Q47-500000)*0.2))) -> 23248.00
C53: 10,00,000 ls vf/kd | F53: 30% | H53: 10,00,000 ls vf/kd | K53: 30% | L53: 10,00,000 ls vf/kd | O53: 30% | P53: #- | Q53: =IF(Q47<1000001,0,((Q47-1000000)*0.3)) -> 0.00
C54: ¼1½ ;ksx vk;dj | P54: #- | Q54: =SUM(Q50:Q53) -> 35748.00
C55: ¼2½ NwV ?kkjk 87¼A½ ¼2-50 yk[k ls 5-00 yk[k rd dh dj ;ksX; vk; ij vk;dj dh NwV vf/kdre :- 12500 rd½ | P55: #- | Q55: =IF(Q47>500000,0,IF(Q54<12501,Q54,12500)) -> 0.00
C56: ¼3½ 'ks"k vk;dj ¼1&2½ | P56: #- | Q56: =Q54-Q55 -> 35748.00
C57: ¼4½ f'k{kk midj 2% ,oa mPp f'k{kk ds fy, vf/kHkkj 2% (;ksx 4%) | P57: #- | Q57: =ROUND(Q56*0.04,0) -> 1430.00
C58: dqy vk;dj ¼3$4½ | P58: #- | Q58: =SUM(Q56:Q57) -> 37178.00
B59: 17 | C59: ?kVkb;s %& jkgr /kkjk 89 ds rgr | P59: #- | Q59: ='Other Deduction'!E17 -> 0.00
B60: 18 | C60: dqy 'ks"k vk;dj | P60: #- | Q60: =Q58-Q59 -> 37178.00
B61: 19 | C61: vk;dj dVkSrh dk fooj.k | F61: flrEcj 2021 rd :i;s | J61: fnlEcj 2021 rd :i;s | L61: tuojh 2022 rd :i;s | M61: Qjojh 2022 rd :i;s | O61: Vh-Mh-,l- :Ik;s | P61: ;ksx dkWye 19
F62: =SUM('GA-55'!X11:X17) -> 0 | J62: =SUM('GA-55'!X18:X20) -> 0 | L62: ='GA-55'!X21 -> 0 | M62: ='GA-55'!X22 -> 0 | O62: =SUM('GA-55'!X23:X31)+'Other Deduction'!E18 -> 0 | P62: =F62+J62+L62+M62+O62 -> 0.00
B63: =IF(Q60>P62,"Income Tax Payable",IF(Q60<P62,"Income Tax Refundable","Income Tax Payble/Refundable")) -> Income Tax Payable | P63: #- | Q63: =IF(Q60>P62,Q60-P62,P62-Q60) -> 37178.00
E65: gLrk{kj dkfeZd

Sheet Tax New Regime
B1: ='GA-55'!D6 -> GOVT. SR. SECONDARY SCHOOL, DILOD HATHI, ATRU BARAN
B2: vk;dj x.kuk izi= o"kZ 2021&2022 ¼dj fu/kkZj.k o"kZ 2022&2023½
B3: 1 | C3: uke deZpkjh % | E3: ='GA-55'!D8 -> PARMANAND MEGHWAL | K3: in % | L3: ='GA-55'!L8 -> SR. TEACHER | O3: PAN : | P3: ='GA-55'!R8 -> ASQPM6311H
B4: 2 | C4: vk; % o"kZ&2021&22 esa izkIr dqy osru ¼ dj ;ksX; lqfo/kkvksa ds eqY; lfgr ½ | P4: #- | Q4: =IF('GA-55'!Z2="No",'GA-55'!N32,('GA-55'!N32+'GA-55'!O32)) -> 849302.00
B5: 3 | C5: x`g fdjk;k] /kkjk 10¼13&A½ ds vUrxrZ ,oa /kkjk 10¼14½ds vUrxrZ vU; Hkrs tks dj eqDÙk gSA | P5: #- | Q5: 0.00
B6: 4 | C6: 'ks"k ¼2&3½ | P6: #- | Q6: =Q4-Q5 -> 849302.00
B7: 5 | C7: ¼i½euksjatu Hkrk /kkjk 16 ¼ii½ ds vUrxrZ ¼ vf/kdre lhek : 5000 ½ | M7: ='Other Deduction'!B4 -> 0.00
C8: ¼ii½ O;o;k; dj /kkjk 16 ¼iii½ ds vUrxrZ | M8: ='Other Deduction'!B5 -> 0.00
C9: ¼iiI½ LVs.MMZ fMMsD'ku (Standard Deduction) 50]000 ¼vf/kdre½ | M9: 0.00 | P9: #- | Q9: =SUM(M7:O9) -> 0.00
B10: 6 | C10: 'ks"k ¼4&5½ | P10: #- | Q10: =Q6-Q9 -> 849302.00
B11: 7 | C11: ¼v½x`g lEifr ls vk;%¼1½ Loa; ds mi;ksx esa &'kwU; | K11: ¼2½ izkIr fdjk;k #- | M11: 0.00
C12: ¼c½ ?kVk;sa | E12: fdjk;s dk 30% | H12: x`g _.k ij C;kt | K12: x`gdj | M12: ;ksx 7¼c½
E13: =ROUND(M11*0.3,0) -> 0.00 | H13: 0.00 | K13: ='Other Deduction'!B7 -> 0.00 | M13: =E13+H13+K13 -> 0.00
C14: 'ks"k &@$¼7¼v½ ,oa ;ksx 7¼c½ dk½ | P14: #- | Q14: =M11-M13 -> 0.00
B15: 8 | C15: dqy 'ks"k &@$¼6,oa 7½ | P15: #- | Q15: =Q10+Q14 -> 849302.00
B16: 9 | C16: vU; vk; | P16: #- | Q16: ='Other Deduction'!E3+'Other Deduction'!E4 -> 0.00
B17: 10 | C17: ldy vk; ;ksx ¼8$9½ | P17: #- | Q17: =Q15+Q16 -> 849302.00
B18: 11 | C18: ?kVkb;s dVkSSfr;k¡ %& /kkjk US 80C, 80CCC,80CCD (1)
C19: (A) vf/kdre lhek 1]50]000@& ¼/kkjk 80CCE ½ ] ¼/kkjk 80CCD (2), ds vykok
C20: (i) | D20: jkT; chek ¼SI) | H20: #- | I20: ='GA-55'!Q32 -> 36000.00 | J20: (xi) | K20: ljdkjh isa'ku ;kstuk esa va'knku ECPF vf/kdre osru dk 10%¼/kkjk 80ccd½ | N20: #- | O20: =IF('GA-55'!Z2="NPS",'GA-55'!O32-Q33,0) -> 69844.00
C21: (ii) | D21: thou chek izhfe;e ¼LIC) | H21: #- | I21: ='GA-55'!T32+'Other Deduction'!B10 -> 0.00 | J21: (xii) | K21: isa'ku Iyku gsrq va'knku¼/kkjk 80ccc½ | N21: #- | O21: ='Other Deduction'!E6 -> 0.00
C22: (iii) | D22: jk"Vªh; cpr i= ¼NSC) | H22: #- | I22: ='Other Deduction'!B14 -> 0.00 | J22: (xiii) | K22: jk"Vªh; cpr i= ij vnr C;kt | N22: #- | O22: ='Other Deduction'!B15 -> 0.00
C23: (iv) | D23: yksd Hkfo"; fuf/k ¼PPF) | H23: #- | I23: ='Other Deduction'!B16 -> 0.00 | J23: (xiv) | K23: V;w'ku Qhl | N23: #- | O23: ='Other Deduction'!B12 -> 0.00
C24: (v) | D24: jk"Vªh; cpr Ldhe ¼NSS) | H24: #- | I24: ='Other Deduction'!B17 -> 0.00 | J24: (xv) | K24: bfDoVh fyad lsfoax Ldhe | N24: #- | O24: ='Other Deduction'!E15 -> 0.00
C25: (vi) | D25: lkekU; izko/kk;h fuf/k ¼GPF) | H25: #- | I25: =IF('GA-55'!Z2="No",'GA-55'!O32,0) -> 0.00 | J25: (xvi) | K25: LFkfxr okf"kZdh ¼Defferred Annuty) | N25: #- | O25: ='Other Deduction'!E16 -> 0.00
C26: (vii) | D26: lkewfgd chek izhfe;e ¼G.Ins.) | H26: #- | I26: ='GA-55'!U12 -> 220.00 | J26: (xvii) | K26: ih-,y-vkbZ- ¼PLI) | N26: #- | O26: ='Other Deduction'!B11 -> 0.00
C27: (viii) | D27: ;w- ,y- vkbZ- ih-@okf"kZd Iyku | H27: #- | I27: ='Other Deduction'!B13 -> 0.00 | J27: (xviii) | K27: vU; tekjkf'k ¼/kkjk 80 lh ds vUrxZr½ | N27: #- | O27: ='Other Deduction'!E5 -> 0.00
C28: (ix) | D28: x`g _.k fdLr ¼HBA Premium) | H28: #- | I28: ='GA-55'!V32+'Other Deduction'!B8 -> 0.00 | J28: (xix) | K28: lqdU;k le`f) ;kstuk esa tek jkf'k | N28: #- | O28: ='Other Deduction'!B18 -> 0.00
C29: (x) | D29: lkekU; izko/kk;h fuf/k ¼GPF) | H29: #- | I29: =IF('GA-55'!Z2="NPS",'GA-55'!Y32,0) -> 7152.00 | J29: (xx) | K29: vU;
C30: ;ksx ( i ls xviii ) | N30: #- | O30: =SUM(I20:I29)+SUM(O20:O29) -> 113216.00
C31: vf/kdre dVkSrh dh jkf'k 1-50 yk[k #i, rd | P31: #- | Q31: 0.00
C32: (B) ?kVkb;s& /kkjk 80CCD(2) fu;ksDrk }kjk isa'ku va'knku dh jkf'k ¼vf/kdre osru dk 10%) i`Fkd ls NwV | Q32: =IF('GA-55'!Z2="NPS",'GA-55'!O32,0) -> 69844.00
C33: (C) ?kVkb;s & /kkjk 80CCD (1B) uohu isa'ku ;kstuk esa vfrfjDr va'knku ¼vf/kdre :- 50]000) | P33: #- | Q33: ='Other Deduction'!E7 -> 0.00
C34: ;ksx 11(A+B+C) | P34: #- | Q34: =SUM(Q31:Q33) -> 69844.00
B35: 12 | C35: vU; dVkSfr;k¡
C36: 1-/kkjk 80 D ,fpfdRlk chek izhfe;e ¼Lo;a]ifr@iRuh o cPpksa ds fy, : 25000] ekrk&firk ds fy, : 25000]lhfu;j flVhtu : 50000½ | P36: #- | Q36: ='Other Deduction'!E8 -> 0.00
C37: 2- /kkjk 80DD fodykax vkfJrksa ds fpfdRlk mipkj ¼vf/kdre 75]000 rFkk 80% ;k vf/kd fodykaxrk 125]000½ | P37: #- | Q37: ='Other Deduction'!E9 -> 0.00
C38: 3- /kkjk 80DDB fof'k"V jksaxksa ds mipkj gsrq dVkSrh ¼vf/kdre : 40]000] lhfu;j flVhtu gsrq : 100]000½ | P38: #- | Q38: ='Other Deduction'!E10 -> 0.00
C39: 4- /kkjk 80E mPp f'k{kk gsrq fy, _.k dk C;kt | P39: #- | Q39: ='Other Deduction'!E11 -> 0.00
C40: 5- /kkjk 80G /kekZFkZ laLFkkvksa vkfn dks fn;s nku ¼ d Js.kh esa 100 izfr'kr ,oa [k Js.kh esa 50 izfr'kr½ | P40: #- | Q40: ='Other Deduction'!E12 -> 0.00
C41: 6- /kkjk 80U LFkkbZ :i ls 'kkjhfjd vleFkZrrk dh n'kk esa ¼vf/kdre 75]000 rFkk vf/kfu;e 1995ds vuqlkj 125]000½ | P41: #- | Q41: ='Other Deduction'!E13 -> 0.00
C42: 7- /kkjk 80 TTA cpr [kkrs ij vf/kdre C;kt :- 10]000 194(IA) (80 TTB - aofj"B ukxfjd vf/kdre C;kt 50000:-½ | P42: #- | Q42: =IF('GA-55'!P4="Yes",IF('Other Deduction'!E3<50001,'Other Deduction'!E3,50000),IF('Other Deduction'!E3<10001,'Other Deduction'!E3,10000)) -> 0.00
C43: 8- /kkjk 80 GGA vuqeksfnr oSKkfud] lkekftd] xzkeh.k fodkl vkfn gsrq fn;k x;k nku | P43: #- | Q43: ='Other Deduction'!E14 -> 0.00
C44: dqy ;ksx 12 ¼ 1 ls 6 rd ½ | P44: #- | Q44: =SUM(Q36:Q43) -> 0.00
B45: 13 | C45: dqy dVkSrh ( 11 + 12) | P45: #- | Q45: =Q34+Q44 -> 69844.00
B46: 14 | C46: dj ;ksX; vk; ( 10 - 13 ) | P46: #- | Q46: =(Q17-Q45) -> 779458.00
B47: 15 | C47: dqy vk; dh jkf'k dks lEiw.kZ djuk ¼ nl ds xq.kd esa ½ /kkjk 288A | P47: #- | Q47: =ROUND(Q46,-1) -> 779460.00
B48: 16 | C48: vk;dj dh x.kuk mijksDr dkWye 15 ds vk/kkj ij
C49: ,d O;fDr dj nkrk | H49: ofj"B ukxfjd ¼60 ls 80 o"kZ rd½ | L49: 80 o"kZ ;k vf/kd vk;q
C50: 2,50,000 rd | F50: Nil | H50: 3,00,000 rd | K50: Nil | L50: 3,00,000 rd | O50: Nil | P50: #- | Q50: 0.00
C51: 2,50,001-5,00,000 | F51: 5% | H51: 2,50,001-5,00,000 | K51: 5% | L51: 5,00,000 rd | O51: 5% | P51: #- | Q51: =ROUND(IF('GA-55'!P4="No",IF(Q47<250001,0,IF(Q47>500000,12500,((Q47-250000)*0.05))),IF(Q47<300001,0,IF(Q47>500000,10000,((Q47-300000)*0.05)))),0) -> 12500.00
C52: 5,00,001-7,50,000 | F52: 10% | H52: 5,00,001-7,50,000 | K52: 10% | L52: 5,00,001-7,50,000 | O52: 10% | P52: #- | Q52: =IF(Q47<500001,0,IF(Q47>750000,25000,((Q47-500000)*0.1))) -> 25000.00
C53: 7,50,001-10,00,000 | F53: 15% | H53: 7,50,001-10,00,000 | K53: 15% | L53: 7,50,001-10,00,000 | O53: 15% | Q53: =IF(Q47<750001,0,IF(Q47>1000000,37500,((Q47-750000)*0.15))) -> 4419.00
C54: 10,00,001-12,50,000 | F54: 20% | H54: 10,00,001-12,50,000 | K54: 20% | L54: 10,00,001-12,50,000 | O54: 20% | Q54: =IF(Q47<1000001,0,IF(Q47>1250000,50000,((Q47-1000000)*0.2))) -> 0.00
C55: 12,50,001-15,00.000 | F55: 25% | H55: 12,50,001-15,00.000 | K55: 25% | L55: 12,50,001-15,00.000 | O55: 25% | Q55: =IF(Q47<1250001,0,IF(Q47>1500000,62500,((Q47-1250000)*0.25))) -> 0.00
C56: 15,00,001 ls vf/kd | F56: 30% | H56: 15,00,001 ls vf/kd | K56: 30% | L56: 15,00,001 ls vf/kd | O56: 30% | P56: #- | Q56: =IF(Q47<1500001,0,((Q47-1500000)*0.3)) -> 0.00
C57: ¼1½ ;ksx vk;dj | P57: #- | Q57: =SUM(Q50:Q56) -> 41919.00
C58: ¼2½ NwV ?kkjk 87¼A½ ¼2-50 yk[k ls 5-00 yk[k rd dh dj ;ksX; vk; ij vk;dj dh NwV vf/kdre :- 12500 rd½ | P58: #- | Q58: =IF(Q47>500000,0,IF(Q57<12501,Q57,12500)) -> 0.00
C59: ¼3½ 'ks"k vk;dj ¼1&2½ | P59: #- | Q59: =Q57-Q58 -> 41919.00
C60: ¼4½ f'k{kk midj 2% ,oa mPp f'k{kk ds fy, vf/kHkkj 2% (;ksx 4%) | P60: #- | Q60: =ROUND(Q59*0.04,0) -> 1677.00
C61: dqy vk;dj ¼3$4½ | P61: #- | Q61: =SUM(Q59:Q60) -> 43596.00
B62: 17 | C62: ?kVkb;s %& jkgr /kkjk 89 ds rgr | P62: #- | Q62: ='Other Deduction'!E17 -> 0.00
B63: 18 | C63: dqy 'ks"k vk;dj | P63: #- | Q63: =Q61-Q62 -> 43596.00
B64: 19 | C64: vk;dj dVkSrh dk fooj.k | F64: flrEcj 2021 rd :i;s | J64: fnlEcj 2021 rd :i;s | L64: tuojh 2022 rd :i;s | M64: Qjojh 2022 rd :i;s | O64: Vh-Mh-,l- :Ik;s | P64: ;ksx dkWye 19
F65: =SUM('GA-55'!X11:X17) -> 0 | J65: =SUM('GA-55'!X18:X20) -> 0 | L65: ='GA-55'!X21 -> 0 | M65: ='GA-55'!X22 -> 0 | O65: =SUM('GA-55'!X23:X31)+'Other Deduction'!E18 -> 0 | P65: =F65+J65+L65+M65+O65 -> 0.00
B66: =IF(Q63>P65,"Income Tax Payable",IF(Q63<P65,"Income Tax Refundable","Income Tax Payble/Refundable")) -> Income Tax Payable | P66: #- | Q66: =IF(Q63>P65,Q63-P65,P65-Q63) -> 43596.00
E68: gLrk{kj dkfeZd

Sheet Form 16
A1: FORM NO.16
A2: [See rule 31 (1) (a)]
A3: Part A
A4: Certificate under section 203 of the Income Tax Act, 1961 for tax deducted
A5: at source from income chargeable under the head “ Salaries “
A6: Name and address of the employer | G6: Name and Designation of the employee
A7: ='Basic Profile'!O3 -> HANUMAN SAHAY | G7: ='GA-55'!D8 -> PARMANAND MEGHWAL
A8: ='Basic Profile'!O5 -> PRINCIPAL | G8: ='GA-55'!L8 -> SR. TEACHER
A9: ='Basic Profile'!C6 -> GOVT. SR. SECONDARY SCHOOL, DILOD HATHI, ATRU BARAN | G9: ='GA-55'!D6 -> GOVT. SR. SECONDARY SCHOOL, DILOD HATHI, ATRU BARAN
A11: PAN of the Deducter | D11: TAN of the Deducter | G11: PAN of the Employee
D12: ='Basic Profile'!Q6 -> XXXX9987D | G12: ='GA-55'!R8 -> ASQPM6311H
A13: TDS Circle where annual | G13: PERIOD | J13: Assessment Year
A14: return / statement under | G14: FROM | I14: TO | J14: 2022-23
A15: section 206 is to be filed | G15: 01.04.2021 | I15: 31.03.2022
A16: Smmary of amount Paid/credited and tax Deducted at source thereon in respect of the Employee
A17: Quarter(s) | C17: Receipt Numbersof Original Quaterly Statements of TDS Under Sub-Section (3) of Section 200 | F17: Amount Paid cridited | H17: Amount of Tax Deducted (Rs) | K17: Amount of Tax Deposited / Remitted (Rs)
A18: Quarter 1 | F18: =SUM('GA-55'!N11+'GA-55'!N12+'GA-55'!N13) -> 169125 | H18: =SUM('GA-55'!X11:X13) -> 0 | K18: =H18 -> 0
A19: Quarter 2 | F19: =SUM('GA-55'!N14+'GA-55'!N15+'GA-55'!N16+'GA-55'!N24) -> 183785 | H19: =SUM('GA-55'!X14:X16) -> 0 | K19: =H19 -> 0
A20: Quarter 3 | F20: =SUM('GA-55'!N17+'GA-55'!N18+'GA-55'!N19+'GA-55'!N26) -> 200679 | H20: =SUM('GA-55'!X17:X19) -> 0 | K20: =H20 -> 0
A21: Quarter 4 | F21: =SUM('GA-55'!N20+'GA-55'!N21+'GA-55'!N22+'GA-55'!N23+'GA-55'!N25+'GA-55'!N27+'GA-55'!N228+'GA-55'!N29+'GA-55'!N30+'GA-55'!N31) -> 225869 | H21: =SUM('GA-55'!X20:X31) -> 0 | K21: =H21 -> 0
A22: Total | F22: =SUM(F18:F21) -> 779458 | H22: =SUM(H18:H21) -> 0 | K22: =SUM(K18:K21) -> 0
A23: I.DETAILS TAX DEDUCTED AND DEPOSITED INTO CENTRAL GOVERNMENT ACCOUNT THROUGH BOOK ADJUSTMENT
A24: S.No | B24: Tax Deposited In Respect | E24: Book Identification Number (BIN)
B25: of the deducter | E25: Receipt Numbers of | G25: DDO Serial No in | I25: Date Of Transfer | K25: Status of Maching
C26: (Rs) | E26: Form No.24G | G26: Form No.24G | I26: Form No.24G | K26: with Form.No 24G
I27: (dd/mm/yyyy)
A28: 1 | B28: ='GA-55'!X11 -> 0
A29: 2 | B29: ='GA-55'!X12 -> 0
A30: 3 | B30: ='GA-55'!X13 -> 0
A31: 4 | B31: ='GA-55'!X14 -> 0
A32: 5 | B32: ='GA-55'!X15 -> 0
A33: 6 | B33: ='GA-55'!X16 -> 0
A34: 7 | B34: ='GA-55'!X17 -> 0
A35: 8 | B35: ='GA-55'!X18 -> 0
A36: 9 | B36: ='GA-55'!X19 -> 0
A37: 10 | B37: ='GA-55'!X20 -> 0
A38: 11 | B38: ='GA-55'!X21 -> 0
A39: 12 | B39: ='GA-55'!X22 -> 0
A40: 13 | B40: =SUM('GA-55'!X23+'GA-55'!X24+'GA-55'!X25+'GA-55'!X26+'GA-55'!X27+'GA-55'!X28+'GA-55'!X29+'GA-55'!X30+'GA-55'!X31) -> 0
A41: Total (Rs) | B41: =SUM(B28:B40) -> 0
A43: II.DETAILS TAX DEDUCTED AND DEPOSITED INTO CENTRAL GOVERNMENT ACCOUNT THROUGH BOOK CHALLANA
A44: S.No | B44: Tax Deposited In Respect | E44: Book Identification Number (CIN)
B45: of the deducter | E45: BRS Code of the | G45: Date on Which | I45: Challana Serial | K45: Status of Maching
C46: (Rs) | E46: Bank Branch | G46: Tax Deposited | I46: Number | K46: with Form.No 24G
G47: (dd/mm/yyyy)
A48: 1
A49: 2
A50: 3
A51: 4
A52: 5
A53: 6
A54: 7
A55: 8
A56: 9
A57: 10
A58: 11
A59: 12
A60: 13
A61: Total (Rs) | B61: =SUM(B48:D59) -> 0
A62: Verification
A63: I, | B63: =A7 -> HANUMAN SAHAY | E63: Son/Doughter of | G63: ='Basic Profile'!O4 -> GULLA RAM | J63: Working In the Capacity Of
A64: =A8 -> PRINCIPAL | D64: (Designation) do hereby certify that a sum of Rs. | I64: =H22 -> 0 | J64: (in words)
A65: =SpellNumber(I64) -> 0 | F65: has beeen deducted at source and paid to the credit of the Central Government.
A66: I further certify that the information given above is true and correct based on the book of accounts, documents and TDS Statements, TDS Deposited and other available records.
A68: Notes :
A69: 1. Government deductors to fill information in item I if tax is paid without production of an income-tax challan and in item II if tax .
A70: is paid accompanied by an income-tax challan
A71: 2. Non-Government deductors to fill information in item II.
A72: 3. The deductor shall furnish the address of the Commissioner of Income-tax (TDS) having jurisdiction as regards TDS
A73: statements of the assessee.
A74: 4. If an assessee is employed under one employer only during the year, certificate in Form No. 16 issued for the quarter ending on
A75: 31st March of the financial year shall contain the details of tax deducted and deposited for all the quarters of the financial year.
A76: 5. If an assessee is employed under more than one employer during the year, each of the employers shall issue Part
A77: A of the certificate in Form No. 16 pertaining to the period for which such assessee was employed with each of the employers.
A78: Part B (Annexure) of the certificate in Form No.16 may be issued by each of the employers or the last employer at the
A79: option of the assessee.
A80: 6. In items I and II, in column for tax deposited in respect of deductee, furnish total amount of TDS and education cess."
A82: Part B
A83: DETAILS OF SALARY PAID AND ANY OTHER INCOME AND TAX DEDUCTED
A84: 1. Gross Salary *
B85: ( a ) Salary as per provisions contained in section 17 (1) | I85: ='Tax Old Regime'!Q4 -> 849302
B86: ( b ) Value of perquisites under section 17 (2)
B87: (as per Form No. 12 BA, wherever applicable)
B88: ( c ) Profits in lieu of Salary under section 17 (3)
B89: (as per Form No. 12 BA, wherever applicable)
B90: ( d ) Total | J90: =I85+I86+I87+I88+I89 -> 849302
A92: 2. Less : Allowance to the extent exempt under section 10
A93: a)HRA | I93: ='Tax Old Regime'!Q5 -> 0
A94: b)Other
A95: 3. Balance (1-2) | J95: =J90-I93-I94 -> 849302
A97: 4. Deductions :
B98: (a) Standard deduction | F98: Rs. | G98: 50000
B99: (b) Entertainment allowance | F99: Rs. | G99: 0
B100: (c) Tax on Employment | F100: Rs. | G100: 0
A101: 5. Aggregate of 4 (a to c) | I101: 50000
A103: 6. Income chargeable under the Head ‘Salaries’(3-5) | L103: =IF(AND((J95>50000)),(J95-I101),0) -> 799302
A105: 7. Add. : Any other income reported by the employee
B106: Less:- Loss From House Properties | L106: ='Other Deduction'!B9 -> 0
A108: 8. Gross total income (6+7) | L108: =L103+L105-L106 -> 799302
G109: Gross Amount | I109: Qualifying Amt. | K109: Deductible Amt.
A110: 9. Deductions Under Chapter VIA
A111: A. | B111: Sections 80C,80CC and 80CCD1
A112: (a) | B112: Section 80C
B113: (i) | C113: GPF/NPS | F113: Rs. | G113: ='GA-55'!O32 -> 69844 | I113: =G113 -> 69844 | K113: =I113 -> 69844
B114: (ii) | C114: STATE INSURANCE | F114: Rs. | G114: ='GA-55'!Q32 -> 36000 | I114: 36000 | K114: 36000
B115: (iii) | C115: LIC | F115: Rs. | G115: ='GA-55'!T32+'Other Deduction'!B10 -> 0 | I115: 0 | K115: 0
B116: (iv) | C116: Group Ins. | F116: Rs. | G116: ='GA-55'!U32 -> 220 | I116: 220 | K116: 220
B117: (v) | C117: GPF 2004 | F117: Rs. | G117: ='Tax Old Regime'!I29 -> 7152 | I117: 7152 | K117: 7152
B118: (vi) | C118: House Loan Installment | F118: Rs. | G118: ='Tax Old Regime'!I28 -> 0 | I118: 0 | K118: 0
B119: (vii) | C119: Others | F119: Rs. | G119: ='Tax Old Regime'!I22+'Tax Old Regime'!I23+'Tax Old Regime'!I24+'Tax Old Regime'!I27+'Tax Old Regime'!O21+'Tax Old Regime'!O22+'Tax Old Regime'!O23+'Tax Old Regime'!O24+'Tax Old Regime'!O25+'Tax Old Regime'!O26+'Tax Old Regime'!O27+'Tax Old Regime'!O28+'Tax Old Regime'!O29 -> 0 | I119: 0 | K119: 0
A120: (b) | B120: Section 80CCC | F120: Rs. | G120: 0 | I120: 0 | K120: 0
A121: (c) | B121: Section 80CCD | F121: Rs. | G121: 0 | I121: 0 | K121: 0
A122: Aggregate amount deductible under the three sections | G122: =SUM(G113:G121) -> 113216 | I122: =SUM(I113:I121) -> 113216 | K122: =IF(SUM(K113:L119)>150000,150000,SUM(K113:L119)) -> 113216
A123: i.e.80C, 80CCC and 80CCD
A125: (d) | B125: Section 80CCD2 | F125: Rs. | G125: =IF('GA-55'!Z2="Yes",'GA-55'!O32,0) -> 0 | I125: =G125 -> 0 | K125: =I125 -> 0
A126: (e) | B126: Section 80CCD (1B) | F126: Rs. | G126: ='Tax Old Regime'!Q33 -> 0 | I126: =G126 -> 0 | K126: =I126 -> 0
A128: B. | B128: Other Sections ( e.g. 80E, 80G, 80TTA etc) Under Chapter VIA
G129: Gross Amount | I129: Qualifying Amt. | K129: Deductible Amt.
B130: (i) | C130: vU; dVkSfr;ka | F130: Rs. | G130: =SUM('Tax Old Regime'!Q36:Q43) -> 0 | I130: =G130 -> 0 | K130: =I130 -> 0
B131: (ii) | F131: Rs. | I131: =G131 -> 0 | K131: =I131 -> 0
B132: (iii) | F132: Rs. | I132: =G132 -> 0 | K132: =I132 -> 0
A133: 10. Aggregate of deductible amount under chapter VI-A | K133: =K122+K125+K126+K130+K131+K132 -> 113216 | L133: 0
A135: 11. Total Income (8-10 ) | K135: ='Tax Old Regime'!Q47 -> 616240
A137: 12. Tax on Total Income | K137: ='Tax Old Regime'!Q54 -> 35748
A138: 13. Rebate U/S 87a | K138: ='Tax Old Regime'!Q55 -> 0
A139: 14. Tax Payable on total income (12-13) | K139: =K137-K138 -> 35748
A140: 15.Education & Health Cess 4% | K140: ='Tax Old Regime'!Q57 -> 1430
A141: 16. Tax payable (14+15) | K141: ='Tax Old Regime'!Q58 -> 37178
A142: 17. Relife Under Section 89 (attach details) | K142: ='Tax Old Regime'!Q59 -> 0
A143: 18. Tax payable (16-17) | K143: ='Tax Old Regime'!Q60 -> 37178
A144: 19.Tax Deducted at source U/S 192
A145: 20. Tax payable / refundable (17-18) | K145: ='Tax Old Regime'!Q63 -> 37178
A146: Verification
A147: I, | B147: =A7 -> HANUMAN SAHAY | E147: Son/Doughter of | G147: =G63 -> GULLA RAM | J147: Working In the Capacity Of
A148: =A8 -> PRINCIPAL | D148: (Designation) do hereby certify that the information given above is true correct based on the
A149: book of accounts, documents and TDS Statements, TDS Deposited and other available records.
F154: Signature & Seal
A156: Place: | F156: Full Name | H156: ='Basic Profile'!#REF! -> 
A157: Date: | F157: Designation | H157: ='Basic Profile'!#REF! -> 

Sheet HRA Receipt
A1: RECEIPT OF HOUSE RENT
A2: (Under section 1 (13-A) of Income Tax Act)
I5: Date :-
B7: I Owner
C8: Received with Thanks from Sri/Smt. | G8: ---------------------------------------------------------------------------------------------
B9: Address- | C9: ---------------------------------------------------------------------------------------------------------------------------------------------------
B10: The sum of | C10: Rs.=
B11: Towards the House Rent @ Rs. =
B12: Per Month From :- | D12: April 2020 To March 2021
B14: Rs. =
B16: Date:- | C16: =J5 -> 00:00:00
H18: (Signature of House Owner)
H19: (Affix Revenue Stamp of Rs.1/-)
H20: Name-
H21: ADDRESS
H24: PAN NUMBER
